bitfinex-derivatives/quotes_SOLF0:USTF0_20250928
["timestamp","ask_amount","ask_price","bid_price","bid_amount"]
[1759061363601,4.5108,199.43,199.38,109.44]
[1759061364100,4.5108,199.43,199.39,7.75]
[1759061364401,4.5108,199.43,199.38,109.44]
[1759061365406,4.5108,199.43,199.39,7.75]
[1759061365600,4.5108,199.43,199.38,109.44]
[1759061365806,4.5108,199.43,199.39,7.75]
[1759061366205,4.5108,199.43,199.38,109.44]
[1759061367098,4.5108,199.43,199.39,7.75]
[1759061367306,4.5108,199.43,199.38,109.44]
[1759061367507,4.5108,199.43,199.39,7.75]
[1759061367712,4.5108,199.43,199.38,109.44]
[1759061367909,4.5108,199.43,199.39,7.75]
[1759061368303,4.5108,199.43,199.38,109.44]
[1759061368510,4.5108,199.43,199.39,7.75]
[1759061368808,4.5108,199.43,199.38,109.44]
[1759061369010,4.5108,199.43,199.39,7.75]
[1759061369213,4.5108,199.43,199.38,109.44]
[1759061369901,4.5108,199.43,199.39,7.75]
[1759061370307,70.1774,199.4,199.32,8.66506831]
[1759061370498,70.1774,199.4,199.32,132.36506831]
[1759061370705,70.1774,199.4,199.32,131.45]
[1759061372606,4.5122,199.37,199.33,7.75]
[1759061372812,4.5122,199.37,199.32,123.7]
[1759061373314,4.5122,199.37,199.33,7.75]
[1759061373811,4.5122,199.37,199.32,123.7]
[1759061374215,4.5124,199.36,199.33,7.75]
[1759061375013,4.5124,199.36,199.32,123.7]
[1759061375410,4.5124,199.36,199.33,7.75]
[1759061375614,4.5124,199.36,199.32,123.7]
[1759061375816,4.5124,199.36,199.32,123.64]
[1759061376209,4.5124,199.36,199.33,7.75]
[1759061376409,4.5124,199.36,199.32,123.64]
[1759061376617,4.5119,199.38,199.3,7.75]
[1759061376912,70.17,199.42,199.32,7.75]
[1759061377119,70.17,199.42,199.32,131.37]
[1759061377616,4.5121,199.37,199.32,7.75]
[1759061377819,4.5121,199.37,199.33,123.62]
[1759061378020,4.5121,199.37,199.34,7.75]
[1759061378520,70.1792,199.4,199.3,7.75]
[1759061378817,70.1792,199.4,199.32,123.58]
[1759061379207,4.5126,199.35,199.31,123.6]
[1759061379419,4.5126,199.35,199.32,7.75]
[1759061379609,4.5126,199.35,199.29,364.8]
[1759061379814,4.5126,199.35,199.3,131.31]
[1759061380117,4.5126,199.35,199.31,7.75]
[1759061380309,4.5126,199.35,199.3,123.56]
[1759061380514,4.5126,199.35,199.31,7.75]
[1759061380714,4.5126,199.35,199.3,123.56]
[1759061380908,70.1792,199.4,199.31,7.75]
[1759061381112,193.7433,199.44,199.31,7.75]
[1759061381311,70.171,199.42,199.33,7.75]
[1759061381520,70.171,199.42,199.33,131.27]
[1759061381710,70.1633,199.44,199.33,7.75]
[1759061382017,70.1633,199.44,199.35,7.75]
[1759061383821,4.5116,199.39,199.36,7.75]
[1759061384018,4.5116,199.39,199.34,123.5]
[1759061384516,4.5112,199.41,199.35,7.75]
[1759061384715,9.0194,199.48,199.36,41.18]
[1759061384917,70.1474,199.49,199.38,7.75]
[1759061385121,70.1474,199.49,199.4,7.75]
[1759061385418,4.5106,199.44,199.4,7.75]
[1759061385817,4.5106,199.44,199.39,65.48]
[1759061386209,4.5106,199.44,199.4,7.75]
[1759061386416,4.5106,199.44,199.39,65.48]
[1759061386616,4.5106,199.44,199.4,7.75]
[1759061386822,4.5106,199.44,199.39,65.48]
[1759061387017,4.5106,199.44,199.4,7.75]
[1759061387215,70.1632,199.44,199.3,7.75]
[1759061387417,70.1665,199.43,199.29,364.8]
[1759061387723,70.1665,199.43,199.31,7.75]
[1759061388119,70.1611,199.45,199.32,7.75]
[1759061388325,70.1611,199.45,199.3,7.75]
[1759061388528,70.1611,199.45,199.31,123.6]
[1759061388723,70.1611,199.45,199.32,7.75]
[1759061389631,4.5112,199.41,199.32,4.5129]
[1759061389831,4.5112,199.41,199.33,7.75]
[1759061390433,4.5112,199.41,199.35,7.75]
[1759061390932,4.5112,199.41,199.35,131.29]
[1759061391434,4.5112,199.41,199.35,7.75]
[1759061391730,4.5112,199.41,199.35,131.27]
[1759061395431,4.5107,199.43,199.36,7.42]
[1759061395628,4.5107,199.43,199.35,4.5123]
[1759061395629,4.5107,199.43,199.37,44.28]
[1759061396136,70.1474,199.49,199.38,7.42]
[1759061397543,70.1474,199.49,199.39,7.42]
[1759061398639,4.5104,199.45,199.39,7.42]
[1759061399144,4.5098,199.47,199.39,7.42]
[1759061399347,4.5098,199.47,199.4,110.22]
[1759061399544,4.5098,199.47,199.41,7.42]
[1759061400138,4.5098,199.47,199.41,130.86]
[1759061400737,4.5094,199.49,199.41,130.86]
[1759061400939,70.1364,199.52,199.41,130.82]
[1759061401143,70.1364,199.52,199.41,7.42]
[1759061401343,70.1364,199.52,199.41,23.58]
[1759061401635,4.5099,199.47,199.41,23.58]
[1759061403440,4.5099,199.47,199.41,7.42]
[1759061404539,70.1395,199.51,199.38,7.42]
[1759061404844,70.1489,199.48,199.38,7.42]
[1759061405047,4.5102,199.45,199.38,7.42]
[1759061405239,70.1455,199.49,199.38,7.42]
[1759061405947,70.1538,199.47,199.37,7.42]
[1759061407648,4.511,199.42,199.38,7.42]
[1759061408146,4.511,199.42,199.35,7.42]
[1759061409644,4.5105,199.44,199.35,7.42]
[1759061409845,4.5105,199.44,199.35,130.7]
[1759061410142,4.5105,199.44,199.37,7.42]
[1759061412350,70.1531,199.47,199.37,7.42]
[1759061412653,70.1562,199.46,199.37,7.42]
[1759061414351,4.5112,199.41,199.37,7.42]
[1759061414948,193.3655,199.49,199.37,7.42]
[1759061415151,70.1384,199.51,199.37,7.42]
[1759061415550,70.1384,199.51,199.37,49.02]
[1759061415747,5.54718804,199.59,199.41,7.55]
[1759061416052,70.1134,199.59,199.42,7.55]
[1759061416253,70.1134,199.59,199.44,7.55]
[1759061416457,70.1094,199.6,199.46,7.55]
[1759061416750,4.5073,199.58,199.48,4.5094]
[1759061416947,4.5073,199.58,199.49,7.55]
[1759061417650,4.5073,199.58,199.5,7.55]
[1759061418353,4.5067,199.61,199.52,7.55]
[1759061418852,70.1012,199.62,199.52,7.55]
[1759061419558,4.5073,199.58,199.52,7.55]
[1759061420254,70.1102,199.59,199.48,7.55]
[1759061420762,0.65352572,199.63,199.48,7.55]
[1759061421057,0.65352572,199.63,199.49,7.55]
[1759061421245,4.5064,199.62,199.53,7.55]
[1759061421456,0.65352572,199.63,199.53,7.55]
[1759061422352,0.65352572,199.63,199.54,7.55]
[1759061422353,5.15982572,199.63,199.54,7.55]
[1759061423464,4.5065,199.62,199.54,7.55]
[1759061423649,0.65352572,199.63,199.54,7.55]
[1759061424558,4.5067,199.61,199.54,7.55]
[1759061426050,5.15962572,199.63,199.54,7.55]
[1759061427557,5.15962572,199.63,199.54,12.058]
[1759061427751,5.15962572,199.63,199.55,7.4]
[1759061428152,0.65352572,199.63,199.55,7.4]
[1759061428356,0.65352572,199.63,199.56,7.4]
[1759061431359,4.5065,199.62,199.56,7.4]
[1759061432450,0.65352572,199.63,199.56,7.4]
[1759061433652,0.65352572,199.63,199.57,7.4]
[1759061435955,5.15982572,199.63,199.57,7.4]
[1759061436761,0.65352572,199.63,199.57,7.4]
[1759061437656,4.5067,199.61,199.53,69.4683]
[1759061437859,4.5067,199.61,199.54,7.4]
[1759061438461,4.5067,199.61,199.55,7.4]
[1759061438973,0.65352572,199.63,199.55,7.4]
[1759061439658,0.65352572,199.63,199.55,4.5078]
[1759061439962,0.65352572,199.63,199.56,7.4]
[1759061443068,5.15972572,199.63,199.56,7.4]
[1759061447667,5.15972572,199.63,199.56,11.9076]
[1759061447872,0.65352572,199.63,199.57,7.4]
[1759061453173,4.506,199.64,199.57,7.4]
[1759061455366,4.5062,199.63,199.57,7.4]
[1759061460582,5.54718804,199.72,199.56,8.12]
[1759061460880,0.60514038,199.73,199.58,8.12]
[1759061461080,0.60514038,199.73,199.64,8.12]
[1759061462276,0.60514038,199.73,199.57,75.73657879]
[1759061462277,4.504,199.73,199.66,8.12]
[1759061463385,70.0503,199.77,199.66,8.12]
[1759061464279,70.0545,199.75,199.66,8.12]
[1759061464472,70.0577,199.74,199.61,20.5]
[1759061464678,70.0577,199.74,199.62,8.12]
[1759061465083,4.5046,199.7,199.62,8.12]
[1759061465688,4.5042,199.72,199.63,8.12]
[1759061466180,70.0504,199.76,199.63,8.12]
[1759061466779,4.5045,199.71,199.63,8.12]
[1759061467381,4.5039,199.73,199.63,12.626]
[1759061467687,4.5039,199.73,199.64,8.12]
[1759061468786,4.5039,199.73,199.66,8.12]
[1759061470485,4.5035,199.75,199.66,8.12]
[1759061471888,4.5038,199.74,199.66,8.12]
[1759061472681,4.5032,199.76,199.66,8.12]
[1759061472882,0.59154549,199.79,199.66,8.12]
[1759061473381,4.5029,199.78,199.7,8.04]
[1759061473582,0.59154549,199.79,199.7,8.04]
[1759061473779,4.5032,199.76,199.65,8.04]
[1759061474091,4.5032,199.76,199.66,8.04]
[1759061474588,4.5036,199.75,199.66,4.5053]
[1759061474886,4.5036,199.75,199.67,8.04]
[1759061475188,0.59154549,199.79,199.67,8.04]
[1759061476691,4.503,199.77,199.69,8.04]
[1759061477389,4.5033,199.76,199.69,8.04]
[1759061477786,70.0454,199.78,199.61,5.61997879]
[1759061477991,4.5043,199.72,199.63,8.04]
[1759061478285,70.0454,199.78,199.63,8.04]
[1759061479692,4.5037,199.74,199.66,8.04]
[1759061480384,0.59154549,199.79,199.66,8.04]
[1759061480590,4.503,199.77,199.68,8.04]
[1759061481688,4.503,199.77,199.69,8.04]
[1759061482090,4.5033,199.76,199.69,8.04]
[1759061484594,4.5029,199.78,199.7,7.8]
[1759061486393,4.5031,199.77,199.7,7.8]
[1759061488090,0.59154549,199.79,199.7,7.8]
[1759061489192,4.5035,199.75,199.69,7.8]
[1759061490198,4.5031,199.77,199.69,12.3047]
[1759061491107,4.5033,199.76,199.69,12.3047]
[1759061491596,4.5033,199.76,199.7,7.8]
[1759061491898,4.5036,199.75,199.68,7.8]
[1759061493592,4.5036,199.75,199.68,12.3049]
[1759061493788,4.5036,199.75,199.69,7.8]
[1759061495604,4.5036,199.75,199.69,12.3047]
[1759061496204,4.5036,199.75,199.7,7.8]
[1759061496402,4.5036,199.75,199.69,4.5047]
[1759061496603,4.5036,199.75,199.7,7.8]
[1759061496806,4.5036,199.75,199.69,4.5047]
[1759061497203,4.5031,199.77,199.7,7.8]
[1759061498508,4.5031,199.77,199.7,12.3045]
[1759061503115,5.54718804,199.85,199.76,70.0503]
[1759061503313,5.54718804,199.88,199.77,7.8]
[1759061503513,5.54718804,199.94,199.77,7.8]
[1759061504613,4.5002,199.9,199.8,4.5021]
[1759061504815,4.5002,199.9,199.81,7.8]
[1759061505224,4.5002,199.9,199.81,12.3019]
[1759061505526,4.5002,199.9,199.81,4.5019]
[1759061505824,4.5002,199.9,199.82,7.8]
[1759061506227,4.4996,199.92,199.83,7.8]
[1759061507618,4.4996,199.92,199.83,12.3015]
[1759061508223,4.5,199.91,199.83,7.8]
[1759061511719,4.4995,199.93,199.84,7.8]
[1759061512626,4.4995,199.93,199.84,4.5012]
[1759061512825,4.4995,199.93,199.85,7.8]
[1759061516024,0.95937686,199.98,199.88,7.68]
[1759061518126,4.4989,199.95,199.88,12.1804]
[1759061518629,4.4984,199.98,199.89,4.5002]
[1759061518824,69.9604,200.02,199.9,7.68]
[1759061520223,4.4986,199.97,199.9,7.68]
[1759061520724,4.4988,199.96,199.9,7.68]
[1759061521225,4.4991,199.95,199.88,7.68]
[1759061521731,69.9711,199.99,199.88,7.68]
[1759061521925,69.9782,199.97,199.88,7.68]
[1759061523030,4.4997,199.92,199.88,7.68]
[1759061523624,4.4997,199.92,199.86,7.68]
[1759061524530,4.4993,199.94,199.86,7.68]
[1759061524726,69.9782,199.97,199.86,7.68]
[1759061524932,69.9889,199.94,199.86,7.68]
[1759061525133,4.5004,199.89,199.86,7.68]
[1759061525734,69.991,199.93,199.8,4.5022]
[1759061525735,4.5006,199.88,199.8,4.5022]
[1759061525934,4.5006,199.88,199.81,7.68]
[1759061526337,4.5001,199.9,199.81,7.68]
[1759061527634,4.5001,199.9,199.82,4.5017]
[1759061528135,4.5001,199.9,199.83,7.68]
[1759061534749,4.4997,199.92,199.84,7.65]
[1759061535544,4.4997,199.92,199.85,7.65]
[1759061535838,4.4992,199.94,199.85,7.65]
[1759061536542,4.4992,199.94,199.86,4.5008]
[1759061536741,4.4988,199.96,199.87,7.65]
[1759061538639,4.4988,199.96,199.88,4.5003]
[1759061538840,4.4988,199.96,199.89,7.65]
[1759061541350,4.499,199.95,199.89,7.65]
[1759061542151,69.9562,200.03,199.89,7.65]
[1759061542350,69.96,200.02,199.89,7.65]
[1759061542654,4.4986,199.97,199.89,12.1501]
[1759061543346,4.4981,199.99,199.89,7.65]
[1759061543545,69.9563,200.03,199.89,7.65]
[1759061543745,123.18,200.05,199.92,8.05]
[1759061544147,69.9488,200.06,199.92,8.05]
[1759061544452,4.4981,199.99,199.93,4.4993]
[1759061544750,193.1088,200.06,199.93,4.4993]
[1759061544952,193.1088,200.06,199.94,8.05]
[1759061545642,4.4977,200.01,199.94,8.05]
[1759061545949,193.1088,200.06,199.94,8.05]
[1759061547552,4.4979,200.0,199.94,8.05]
[1759061549847,4.4982,199.99,199.94,8.05]
[1759061550044,4.4982,199.99,199.91,4.4997]
[1759061550452,69.9563,200.03,199.92,8.05]
[1759061551553,69.9667,200.0,199.9,8.05]
[1759061552349,4.4985,199.97,199.91,8.05]
[1759061555456,4.4981,199.99,199.92,8.05]
[1759061556054,4.4976,200.01,199.88,78.058]
[1759061556258,4.4976,200.01,199.89,122.88]
[1759061556459,4.4976,200.01,199.9,8.05]
[1759061556663,4.4976,200.01,199.92,8.05]
[1759061557554,4.4976,200.01,199.93,4.4992]
[1759061557757,4.4976,200.01,199.94,8.05]
[1759061558857,4.4979,200.0,199.94,8.05]
[1759061559152,69.9629,200.01,199.91,8.05]
[1759061559360,4.499,199.95,199.86,8.05]
[1759061560454,89.78636788,200.03,199.89,8.05]
[1759061560455,4.4986,199.97,199.89,8.05]
[1759061560756,69.9633,200.01,199.89,8.05]
[1759061561154,4.4988,199.96,199.89,8.05]
[1759061562255,4.4988,199.96,199.9,8.05]
[1759061562951,4.4984,199.98,199.9,8.05]
[1759061563652,69.9687,200.0,199.9,8.05]
[1759061563856,69.9702,199.99,199.9,8.05]
[1759061564559,4.4991,199.95,199.9,8.05]
[1759061564760,69.9816,199.96,199.86,8.05]
[1759061564960,4.4992,199.94,199.86,8.05]
[1759061565456,75.51048804,200.01,199.86,82.3207]
[1759061565457,4.4987,199.96,199.86,82.3207]
[1759061565761,69.9633,200.01,199.87,8.05]
[1759061566562,4.4983,199.98,199.87,4.5005]
[1759061566861,4.4983,199.98,199.88,8.05]
[1759061573259,4.4986,199.97,199.88,8.05]
[1759061574159,0.87046788,200.03,199.88,8.05]
[1759061574358,69.9561,200.03,199.9,7.89]
[1759061574559,75.49918804,200.05,199.9,7.89]
[1759061574958,75.49918804,200.05,199.91,7.89]
[1759061575563,4.4978,200.0,199.91,4.4996]
[1759061575762,4.4978,200.0,199.92,7.89]
[1759061577868,4.4982,199.99,199.92,7.89]
[1759061578564,4.4985,199.97,199.9,99.24]
[1759061578768,4.4985,199.97,199.91,7.89]
[1759061582066,4.4989,199.96,199.92,7.89]
[1759061582263,4.4989,199.96,199.89,7.89]
[1759061582672,4.4991,199.95,199.89,7.89]
[1759061584274,4.4985,199.97,199.89,7.89]
[1759061585873,4.4981,199.99,199.89,7.89]
[1759061586265,4.4981,199.99,199.9,7.89]
[1759061586664,4.4981,199.99,199.91,7.89]
[1759061590677,4.4984,199.98,199.91,7.89]
[1759061594178,4.4985,199.97,199.91,7.89]
[1759061594379,69.965,200.0,199.91,7.89]
[1759061595477,69.983,199.95,199.84,5.61997879]
[1759061595672,69.983,199.95,199.85,8.04]
[1759061596483,69.9809,199.96,199.85,8.04]
[1759061596484,69.9898,199.93,199.85,8.04]
[1759061597675,4.5006,199.88,199.85,8.04]
[1759061597874,69.995,199.92,199.82,8.04]
[1759061598078,69.9965,199.91,199.82,8.04]
[1759061598284,69.9898,199.93,199.82,8.04]
[1759061599374,69.9941,199.92,199.82,8.04]
[1759061600888,69.9898,199.93,199.82,8.04]
[1759061601088,4.5004,199.89,199.82,8.04]
[1759061601294,69.9898,199.93,199.82,8.04]
[1759061602190,69.9941,199.92,199.82,8.04]
[1759061602398,70.0082,199.88,199.78,8.04]
[1759061602699,70.0082,199.88,199.78,51.52]
[1759061602885,4.5018,199.83,199.78,51.52]
[1759061603087,4.5018,199.83,199.78,8.04]
[1759061603292,4.5018,199.83,199.78,82.24]
[1759061603593,4.5018,199.83,199.77,123.69704777]
[1759061605095,4.5018,199.83,199.78,8.07]
[1759061605589,4.5018,199.83,199.77,123.69704777]
[1759061605794,4.5018,199.83,199.78,8.07]
[1759061606093,70.0175,199.86,199.78,8.07]
[1759061606489,70.0118,199.87,199.77,123.71704777]
[1759061606490,4.5024,199.8,199.77,8.90704777]
[1759061606689,70.0223,199.84,199.77,8.90704777]
[1759061606890,70.0297,199.82,199.77,0.83704777]
[1759061607097,70.0297,199.82,199.74,8.07]
[1759061608195,70.0358,199.8,199.74,8.07]
[1759061608498,70.0358,199.8,199.71,73.38]
[1759061609299,70.0358,199.8,199.7,8.07]
[1759061609499,70.0358,199.8,199.7,130.95]
[1759061609703,70.0358,199.8,199.7,8.07]
[1759061610295,70.0358,199.8,199.7,130.95]
[1759061610694,4.5033,199.76,199.7,130.95]
[1759061612304,4.5033,199.76,199.71,8.07]
[1759061612498,4.5033,199.76,199.7,122.88]
[1759061613000,4.5033,199.76,199.71,8.07]
[1759061613198,4.5033,199.76,199.71,122.9]
[1759061613401,4.5033,199.76,199.72,8.07]
[1759061613603,4.5033,199.76,199.71,122.9]
[1759061614197,4.5035,199.75,199.72,8.07]
[1759061614605,70.0416,199.79,199.71,130.97]
[1759061615307,70.0436,199.78,199.71,8.07]
[1759061615803,4.504,199.73,199.71,8.07]
[1759061617903,70.0358,199.8,199.7,8.07]
[1759061618199,70.0396,199.79,199.7,8.07]
[1759061618406,70.0396,199.79,199.71,122.92]
[1759061619604,4.5035,199.75,199.71,122.92]
[1759061620011,70.0396,199.79,199.72,8.07]
[1759061621711,4.5037,199.74,199.72,8.07]
[1759061622111,4.5037,199.74,199.71,122.92]
[1759061623013,4.5041,199.72,199.71,8.07]
[1759061623709,4.5036,199.74,199.71,8.07]
[1759061624008,70.0459,199.78,199.71,8.07]
[1759061624511,70.0459,199.78,199.71,130.99]
[1759061625409,70.0297,199.82,199.72,8.07]
[1759061625612,70.0327,199.81,199.73,122.92]
[1759061625813,70.0327,199.81,199.74,8.07]
[1759061626711,4.5033,199.76,199.74,8.07]
[1759061627310,4.5033,199.76,199.73,122.92]
[1759061627516,4.5033,199.76,199.74,8.07]
[1759061627715,4.5035,199.75,199.73,122.92]
[1759061627917,4.5035,199.75,199.74,8.07]
[1759061629516,70.047,199.77,199.7,130.99]
[1759061630012,4.5042,199.72,199.7,130.99]
[1759061630220,4.5042,199.72,199.71,8.07]
[1759061633116,4.5037,199.74,199.71,8.07]
[1759061633311,4.5037,199.74,199.7,122.92]
[1759061633512,70.0429,199.78,199.71,8.05]
[1759061634822,4.5039,199.73,199.7,122.92]
[1759061635520,4.5039,199.73,199.71,8.05]
[1759061635912,4.5039,199.73,199.7,122.92]
[1759061636114,4.5039,199.73,199.71,8.05]
[1759061636320,4.5039,199.73,199.7,122.92]
[1759061637020,4.5039,199.73,199.71,8.05]
[1759061637813,70.0181,199.86,199.71,8.55]
[1759061638023,70.0181,199.86,199.73,8.05]
[1759061638320,70.0181,199.86,199.75,8.05]
[1759061638519,4.502,199.81,199.76,32.88]
[1759061638722,70.0186,199.85,199.77,8.05]
[1759061639321,4.5024,199.8,199.77,8.05]
[1759061640325,4.5024,199.8,199.76,32.88]
[1759061640622,4.5024,199.8,199.77,8.05]
[1759061640817,4.5024,199.8,199.76,32.88]
[1759061641018,4.5024,199.8,199.77,8.05]
[1759061641317,4.5024,199.8,199.76,32.88]
[1759061641716,4.5024,199.8,199.77,8.05]
[1759061641916,4.5024,199.8,199.76,32.88]
[1759061642327,4.5024,199.8,199.73,4.5037]
[1759061642619,4.5024,199.8,199.75,8.05]
[1759061643023,4.5024,199.8,199.74,19.12]
[1759061643220,4.5024,199.8,199.75,8.05]
[1759061643523,4.5024,199.8,199.74,19.12]
[1759061643722,4.5024,199.8,199.75,8.05]
[1759061644518,70.0295,199.82,199.75,8.05]
[1759061644719,70.0295,199.82,199.69,0.84069408]
[1759061644720,70.0367,199.8,199.69,0.84069408]
[1759061644922,70.0367,199.8,199.7,8.05]
[1759061645122,70.0367,199.8,199.7,40.05]
[1759061645521,4.5033,199.76,199.7,40.05]
[1759061645722,4.5033,199.76,199.7,8.05]
[1759061646622,4.5035,199.75,199.7,8.05]
[1759061647122,4.5035,199.75,199.69,85.48069408]
[1759061647328,4.5035,199.75,199.7,8.05]
[1759061648529,70.0367,199.8,199.69,85.48069408]
[1759061648743,4.5039,199.73,199.67,8.05]
[1759061650028,4.5042,199.72,199.66,73.32]
[1759061650619,4.5042,199.72,199.66,8.03]
[1759061652418,4.5044,199.71,199.65,8.03]
[1759061652623,4.5044,199.71,199.65,74.63]
[1759061652822,70.0534,199.75,199.65,74.63]
[1759061653030,4.5046,199.7,199.65,8.03]
[1759061653224,4.5046,199.7,199.64,8.03]
[1759061655434,4.5046,199.7,199.64,130.91]
[1759061655732,4.5046,199.7,199.64,8.03]
[1759061658635,4.5035,199.75,199.64,8.03]
[1759061658826,4.5035,199.75,199.65,111.28]
[1759061659023,4.5035,199.75,199.66,8.03]
[1759061659228,4.5035,199.75,199.68,8.03]
[1759061659931,4.5035,199.75,199.69,8.03]
[1759061662233,70.0467,199.77,199.64,8.03]
[1759061662432,70.0508,199.76,199.64,8.03]
[1759061662635,70.0549,199.75,199.64,44.15]
[1759061663623,70.0571,199.74,199.64,44.15]
[1759061663829,70.0571,199.74,199.64,8.03]
[1759061664831,4.5048,199.69,199.63,74.48]
[1759061665229,4.5048,199.69,199.64,8.17]
[1759061665432,4.5048,199.69,199.63,74.48]
[1759061665728,4.5048,199.69,199.64,8.17]
[1759061665935,4.5048,199.69,199.63,82.65]
[1759061666534,4.505,199.68,199.63,74.48]
[1759061667229,4.505,199.68,199.64,8.17]
[1759061667736,4.505,199.68,199.63,74.48]
[1759061667936,4.505,199.68,199.64,8.17]
[1759061668836,4.505,199.68,199.63,74.48]
[1759061669333,4.5053,199.67,199.62,122.88]
[1759061670138,4.5053,199.67,199.61,8.17]
[1759061670847,4.5053,199.67,199.62,8.17]
[1759061675938,4.5053,199.67,199.61,122.88]
[1759061676137,4.5053,199.67,199.62,8.17]
[1759061676340,4.5053,199.67,199.61,122.88]
[1759061676534,4.5053,199.67,199.62,8.17]
[1759061676734,4.5048,199.69,199.63,122.88]
[1759061676936,4.5048,199.69,199.64,122.88]
[1759061677741,4.5048,199.69,199.65,8.17]
[1759061677942,70.0395,199.79,199.65,8.17]
[1759061678130,70.0395,199.79,199.67,8.17]
[1759061678131,70.0466,199.77,199.67,8.17]
[1759061678534,70.0466,199.77,199.67,43.11]
[1759061678742,70.0466,199.77,199.67,8.17]
[1759061678948,70.0466,199.77,199.67,76.31]
[1759061679439,4.5042,199.72,199.67,76.31]
[1759061679747,70.0499,199.76,199.67,8.17]
[1759061680045,4.5046,199.7,199.67,8.17]
[1759061680438,4.5046,199.7,199.66,122.88]
[1759061680734,4.5046,199.7,199.64,4.5058]
[1759061680942,70.0756,199.69,199.6,8.17]
[1759061681838,70.0756,199.69,199.6,54.39]
[1759061682043,70.0756,199.69,199.6,67.62]
[1759061682244,4.5053,199.67,199.61,8.17]
[1759061682543,70.0676,199.71,199.61,8.17]
[1759061682937,4.5055,199.66,199.61,8.17]
[1759061683538,4.5055,199.66,199.6,67.62]
[1759061683938,4.5055,199.66,199.61,8.17]
[1759061684133,4.5055,199.66,199.6,67.62]
[1759061684836,4.5055,199.66,199.61,8.17]
[1759061685036,4.5055,199.66,199.6,67.62]
[1759061685243,4.5055,199.66,199.54,91.10463639]
[1759061685244,4.505,199.68,199.61,8.17]
[1759061686633,4.505,199.68,199.62,8.17]
[1759061688441,4.5046,199.7,199.63,4.5059]
[1759061688644,4.5046,199.7,199.64,8.17]
[1759061690944,70.0543,199.75,199.64,8.17]
[1759061691146,70.0457,199.78,199.65,8.17]
[1759061692147,70.0471,199.77,199.65,8.17]
[1759061693652,4.5042,199.72,199.65,8.17]
[1759061693855,4.5042,199.72,199.65,12.6755]
[1759061695148,126.10588804,199.8,199.64,37.26]
[1759061695348,5.54718804,199.81,199.67,7.44]
[1759061695651,70.0319,199.82,199.67,7.44]
[1759061696551,4.5032,199.76,199.7,11.9444]
[1759061697652,4.5028,199.78,199.7,11.9444]
[1759061700049,70.0324,199.81,199.7,11.9444]
[1759061700050,4.503,199.77,199.7,11.9444]
[1759061701052,70.0042,199.9,199.72,7.44]